fUSD/lending_fUSD_20250716
["ID","MTS","AMOUNT","RATE_DAILY","PERIOD"]
[372496735,1752663091611,-151.0,0.00022328,7]
[372496736,1752663091620,-227.889338,0.00022328,7]
[372496737,1752663091630,-226.876575,0.00022328,7]
[372496738,1752663091639,-460.0,0.00022328,2]
[372496739,1752663091649,-460.0,0.00022328,2]
[372496740,1752663091658,-519.13,0.00022328,2]
[372496741,1752663091667,-460.0,0.00022328,2]
[372496742,1752663091678,-676.6,0.00022328,2]
[372496743,1752663091688,-460.0,0.00022328,2]
[372496744,1752663091698,-547.30522256,0.00022328,2]
[372496745,1752663091708,-460.0,0.00022328,2]
[372496746,1752663091717,-460.0,0.00022328,2]
[372496747,1752663091727,-460.0,0.00022328,2]
[372496748,1752663091736,-460.0,0.00022328,2]
[372496749,1752663091746,-460.0,0.00022328,2]
[372496750,1752663091755,-505.45,0.00022328,2]
[372496751,1752663091765,-151.0,0.00022328,7]
[372496752,1752663091774,-151.0,0.00022328,7]
[372496753,1752663091783,-765.61,0.00022328,2]
[372496754,1752663091793,-460.0,0.00022328,2]
[372496755,1752663091802,-522.62,0.00022328,2]
[372496756,1752663091812,-151.0,0.00022328,7]
[372496757,1752663091821,-151.0,0.00022328,7]
[372496758,1752663091831,-173.219293,0.00022328,7]
[372496759,1752663091841,-460.0,0.00022328,2]
[372496760,1752663091850,-264.66793819,0.00022328,2]
[372496761,1752663091859,-538.58,0.00022328,2]
[372496762,1752663091869,-516.14,0.00022328,2]
[372496763,1752663091879,-460.0,0.00022328,2]
[372496764,1752663091888,-460.0,0.00022328,2]
[372496765,1752663091898,-460.0,0.00022328,2]
[372496766,1752663091907,-460.0,0.00022328,2]
[372496767,1752663091917,-924.61,0.00022328,2]
[372496768,1752663091928,-154.032486,0.00022328,7]
[372496769,1752663091938,-154.032486,0.00022328,7]
[372496770,1752663091947,-154.032486,0.00022328,7]
[372496771,1752663091956,-154.032486,0.00022328,7]
[372496772,1752663091965,-609.32,0.00022328,2]
[372496773,1752663091978,-151.0,0.00022328,7]
[372496774,1752663091987,-172.448359,0.00022328,7]
[372496775,1752663091997,-694.23,0.00022328,2]
[372496776,1752663092006,-832.33,0.00022328,2]
[372496777,1752663092016,-460.0,0.00022328,2]
[372496778,1752663092025,-460.0,0.00022328,2]
[372496779,1752663092035,-460.0,0.00022328,2]
[372496780,1752663092045,-983.47,0.00022328,2]
[372496781,1752663092054,-151.0,0.00022328,7]
[372496782,1752663092063,-151.0,0.00022328,7]
[372496783,1752663092074,-460.0,0.00022328,2]
[372496784,1752663092084,-460.0,0.00022328,2]
[372496785,1752663092094,-460.0,0.00022328,2]
[372496786,1752663092104,-460.0,0.00022328,2]
[372496787,1752663092113,-597.48,0.00022328,2]
[372496788,1752663092123,-151.0,0.00022328,7]
[372496789,1752663092132,-151.0,0.00022328,7]
[372496790,1752663092142,-460.0,0.00022328,2]
[372496791,1752663092151,-935.9,0.00022328,2]
[372496792,1752663092160,-891.24,0.00022328,2]
[372496793,1752663092170,-644.94,0.00022328,2]
[372496794,1752663092181,-954.44,0.00022328,2]
[372496795,1752663092191,-460.0,0.00022328,2]
[372496796,1752663092200,-731.16,0.00022328,2]
[372496797,1752663092209,-833.42,0.00022328,2]
[372496798,1752663092219,-523.46,0.00022328,2]
[372496799,1752663092228,-172.87622161,0.00022328,2]
[372496800,1752663092238,-460.0,0.00022328,2]
[372496801,1752663092247,-500.0,0.00022328,5]
[372496802,1752663092259,-600.92697588,0.00022328,2]
[372496803,1752663092268,-460.0,0.00022328,2]
[372496804,1752663092278,-460.0,0.00022328,2]
[372496805,1752663092287,-460.0,0.00022328,2]
[372496806,1752663092297,-774.89,0.00022328,2]
[372496807,1752663092306,-518.16,0.00022328,2]
[372496808,1752663092315,-460.0,0.00022328,2]
[372496809,1752663092325,-460.0,0.00022328,2]
[372496810,1752663092334,-488.59,0.00022328,2]
[372496811,1752663092345,-460.0,0.00022328,2]
[372496812,1752663092355,-460.0,0.00022328,2]
[372496813,1752663092364,-1277.44,0.00022328,2]
[372496814,1752663092373,-460.0,0.00022328,2]
[372496815,1752663092383,-876.74,0.00022328,2]
[372496816,1752663092393,-737.68,0.00022328,2]
[372496817,1752663092402,-460.0,0.00022328,2]
[372496818,1752663092411,-460.0,0.00022328,2]
[372496819,1752663092420,-566.92,0.00022328,2]
[372496820,1752663092430,-460.0,0.00022328,2]
[372496821,1752663092440,-819.52,0.00022328,2]
[372496822,1752663092449,-529.96,0.00022328,2]
[372496823,1752663092459,-460.0,0.00022328,2]
[372496824,1752663092468,-460.0,0.00022328,2]
[372496825,1752663092477,-460.0,0.00022328,2]
[372496826,1752663092487,-509.23,0.00022328,2]
[372496827,1752663092496,-460.0,0.00022328,2]
[372496828,1752663092506,-460.0,0.00022328,2]
[372496829,1752663092515,-732.88,0.00022328,2]
[372496830,1752663092525,-992.29,0.00022328,2]
[372496831,1752663092535,-1012.49,0.00022328,2]
[372496832,1752663092546,-518.81,0.00022328,2]
[372496833,1752663092556,-460.0,0.00022328,2]
[372496834,1752663092566,-460.0,0.00022328,2]
[372496835,1752663092576,-1830.19,0.00022328,2]
[372496836,1752663092586,-1118.14,0.00022328,2]
[372496837,1752663092597,-460.0,0.00022328,2]
[372496838,1752663092606,-698.13,0.00022328,2]
[372496839,1752663092616,-536.27,0.00022328,2]
[372496840,1752663092626,-460.0,0.00022328,2]
[372496841,1752663092635,-1149.74,0.00022328,2]
[372496842,1752663092644,-460.0,0.00022328,2]
[372496843,1752663092654,-460.0,0.00022328,2]
[372496844,1752663092663,-1545.31,0.00022328,2]
[372496845,1752663092673,-460.0,0.00022328,2]
[372496846,1752663092682,-460.0,0.00022328,2]
[372496847,1752663092692,-460.0,0.00022328,2]
[372496848,1752663092702,-726.17,0.00022328,2]
[372496849,1752663092711,-460.0,0.00022328,2]
[372496850,1752663092721,-1284.09,0.00022328,2]
[372496851,1752663092730,-460.0,0.00022328,2]
[372496852,1752663092740,-1215.86,0.00022328,2]
[372496853,1752663092749,-460.0,0.00022328,2]
[372496854,1752663092758,-501.15,0.00022328,2]
[372496855,1752663092767,-761.3,0.00022328,2]
[372496856,1752663092777,-460.0,0.00022328,2]
[372496857,1752663092786,-460.0,0.00022328,2]
[372496858,1752663092796,-639.95,0.00022328,2]
[372496859,1752663092806,-460.0,0.00022328,2]
[372496860,1752663092814,-645.67,0.00022328,2]
[372496861,1752663092824,-1102.51,0.00022328,2]
[372496862,1752663092834,-460.0,0.00022328,2]
[372496863,1752663092844,-482.63,0.00022328,2]
[372496864,1752663092854,-460.0,0.00022328,2]
[372496865,1752663092863,-555.69,0.00022328,2]
[372496866,1752663092873,-486.85,0.00022328,2]
[372496867,1752663092883,-460.0,0.00022328,2]
[372496868,1752663092892,-460.0,0.00022328,2]
[372496869,1752663092902,-460.0,0.00022328,2]
[372496870,1752663092912,-782.15,0.00022328,2]
[372496871,1752663092922,-772.4,0.00022328,2]
[372496872,1752663092932,-1307.09,0.00022328,2]
[372496873,1752663092941,-966.62,0.00022328,2]
[372496874,1752663092951,-752.28,0.00022328,2]
[372496875,1752663092961,-460.0,0.00022328,2]
[372496876,1752663092971,-563.43,0.00022328,2]
[372496877,1752663092982,-460.0,0.00022328,2]
[372496878,1752663092991,-1360.67,0.00022328,2]
[372496879,1752663093001,-839.82,0.00022328,2]
[372496880,1752663093011,-473.28,0.00022328,2]
[372496881,1752663093020,-460.0,0.00022328,2]
[372496882,1752663093030,-691.75,0.00022328,2]
[372496883,1752663093040,-460.0,0.00022328,2]
[372496884,1752663093050,-460.0,0.00022328,2]
[372496885,1752663093060,-517.48,0.00022328,2]
[372496886,1752663093070,-517.7,0.00022328,2]
[372496887,1752663093079,-1030.19,0.00022328,2]
[372496888,1752663093089,-1612.9,0.00022328,2]
[372496889,1752663093099,-460.0,0.00022328,2]
[372496890,1752663093109,-497.86,0.00022328,2]
[372496891,1752663093119,-1319.17,0.00022328,2]
[372496892,1752663093130,-1348.58,0.00022328,2]
[372496893,1752663093140,-876.39,0.00022328,2]
[372496894,1752663093151,-460.0,0.00022328,2]
[372496895,1752663093162,-460.0,0.00022328,2]
[372496896,1752663093172,-460.0,0.00022328,2]
[372496897,1752663093185,-460.0,0.00022328,2]
[372496898,1752663093196,-460.0,0.00022328,2]
[372496899,1752663093206,-521.22,0.00022328,2]
[372496900,1752663093215,-900.25,0.00022328,2]
[372496901,1752663093227,-460.0,0.00022328,2]
[372496902,1752663093238,-460.0,0.00022328,2]
[372496903,1752663093248,-794.42,0.00022328,2]
[372496904,1752663093259,-460.0,0.00022328,2]
[372496905,1752663093269,-460.0,0.00022328,2]
[372496906,1752663093280,-460.0,0.00022328,2]
[372496907,1752663093290,-460.0,0.00022328,2]
[372496908,1752663093300,-460.0,0.00022328,2]
[372496909,1752663093311,-671.7,0.00022328,2]
[372496910,1752663093321,-1426.38,0.00022328,2]
[372496911,1752663093332,-617.3,0.00022328,2]
[372496912,1752663093342,-460.0,0.00022328,2]
[372496913,1752663093353,-460.0,0.00022328,2]
[372496914,1752663093365,-460.0,0.00022328,2]
[372496915,1752663093376,-3492.16,0.00022328,2]
[372496916,1752663093386,-960.48,0.00022328,2]
[372496917,1752663093396,-460.0,0.00022328,2]
[372496918,1752663093406,-697.02,0.00022328,2]
[372496919,1752663093416,-859.04,0.00022328,2]
[372496920,1752663093427,-460.0,0.00022328,2]
[372496921,1752663093437,-460.0,0.00022328,2]
[372496922,1752663093448,-578.96,0.00022328,2]
[372496923,1752663093457,-460.0,0.00022328,2]
[372496924,1752663093467,-737.1,0.00022328,2]
[372496925,1752663093477,-3159.42,0.00022328,2]
[372496926,1752663093488,-460.0,0.00022328,2]
[372496927,1752663093498,-480.69,0.00022328,2]
[372496928,1752663093509,-658.34,0.00022328,2]
[372496929,1752663093518,-1247.6,0.00022328,2]
[372496930,1752663093528,-460.0,0.00022328,2]
[372496931,1752663093538,-460.0,0.00022328,2]
[372496932,1752663093549,-460.0,0.00022328,2]
[372496933,1752663093559,-1704.14,0.00022328,2]
[372496934,1752663093570,-889.84,0.00022328,2]
[372496935,1752663093580,-460.0,0.00022328,2]
[372496936,1752663093590,-460.0,0.00022328,2]
[372496937,1752663093600,-980.18,0.00022328,2]
[372496938,1752663093610,-864.4,0.00022328,2]
[372496939,1752663093620,-460.0,0.00022328,2]
[372496940,1752663093630,-1337.4,0.00022328,2]
[372496941,1752663093640,-460.0,0.00022328,2]
[372496942,1752663093650,-460.0,0.00022328,2]
[372496943,1752663093659,-460.0,0.00022328,2]
[372496944,1752663093669,-538.85,0.00022328,2]
[372496945,1752663093679,-460.0,0.00022328,2]
[372496946,1752663093690,-439.19,0.00022328,2]
[372496947,1752663093700,-460.0,0.00022328,2]
[372496948,1752663093711,-770.68,0.00022328,2]
[372496949,1752663093721,-1191.07,0.00022328,2]
[372496950,1752663093731,-460.0,0.00022328,2]
[372496951,1752663093741,-1520.94,0.00022328,2]
[372496952,1752663093752,-460.0,0.00022328,2]
[372496953,1752663093762,-460.0,0.00022328,2]
[372496954,1752663093773,-460.0,0.00022328,2]
[372496955,1752663093783,-554.47,0.00022328,2]
[372496956,1752663093793,-460.0,0.00022328,2]
[372496957,1752663093803,-575.57,0.00022328,2]
[372496958,1752663093813,-460.0,0.00022328,2]
[372496959,1752663093823,-460.0,0.00022328,2]
[372496960,1752663093833,-614.94,0.00022328,2]
[372496961,1752663093843,-508.1,0.00022328,2]
[372496962,1752663093855,-2763.38,0.00022328,2]
[372496963,1752663093865,-460.0,0.00022328,2]
[372496964,1752663093876,-508.9,0.00022328,2]
[372496965,1752663093887,-460.0,0.00022328,2]
[372496966,1752663093898,-1649.66,0.00022328,2]
[372496967,1752663093908,-460.0,0.00022328,2]
[372496968,1752663093918,-1198.93,0.00022328,2]
[372496969,1752663093930,-460.0,0.00022328,2]
[372496970,1752663093939,-1580.32,0.00022328,2]
[372496971,1752663093951,-1021.74,0.00022328,2]
[372496972,1752663093962,-460.0,0.00022328,2]
[372496973,1752663093973,-460.0,0.00022328,2]
[372496974,1752663093983,-460.0,0.00022328,2]
[372496975,1752663093993,-460.0,0.00022328,2]
[372496976,1752663094003,-2741.41,0.00022328,2]
[372496977,1752663094013,-1900.49,0.00022328,2]
[372496978,1752663094023,-460.0,0.00022328,2]
[372496979,1752663094034,-3441.76,0.00022328,2]
[372496980,1752663094045,-2750.23,0.00022328,2]
[372496981,1752663094055,-460.0,0.00022328,2]
[372496982,1752663094065,-504.67,0.00022328,2]
[372496983,1752663094075,-1705.39,0.00022328,2]
[372496984,1752663094086,-460.0,0.00022328,2]
[372496985,1752663094096,-962.35,0.00022328,2]
[372496986,1752663094106,-460.0,0.00022328,2]
[372496987,1752663094117,-460.0,0.00022328,2]
[372496988,1752663094128,-460.0,0.00022328,2]
[372496989,1752663094138,-478.83,0.00022328,2]
[372496990,1752663094148,-460.0,0.00022328,2]
[372496991,1752663094159,-501.80182027,0.00022328,2]
[372496992,1752663094169,-525.54,0.00022328,2]
[372496993,1752663094181,-1147.29,0.00022328,2]
[372496994,1752663094193,-460.0,0.00022328,2]
[372496995,1752663094203,-737.1,0.00022328,2]
[372496996,1752663094213,-460.0,0.00022328,2]
[372496997,1752663094227,-460.0,0.00022328,2]
[372496998,1752663094237,-460.0,0.00022328,2]
[372496999,1752663094247,-1861.51,0.00022328,2]
[372497000,1752663094258,-1161.16,0.00022328,2]
[372497001,1752663094268,-464.05,0.00022328,2]
[372497002,1752663094279,-460.0,0.00022328,2]
[372497003,1752663094289,-1367.94,0.00022328,2]
[372497004,1752663094299,-1541.82,0.00022328,2]
[372497005,1752663094309,-515.0,0.00022328,2]
[372497006,1752663094319,-509.86,0.00022328,2]
[372497007,1752663094329,-796.7,0.00022328,2]
[372497008,1752663094340,-2639.83,0.00022328,2]
[372497009,1752663094351,-1604.58,0.00022328,2]
[372497010,1752663094361,-720.83,0.00022328,2]
[372497011,1752663094373,-2045.95,0.00022328,2]
[372497012,1752663094383,-2767.68,0.00022328,2]
[372497013,1752663094396,-556.0,0.00022328,2]
[372497014,1752663094406,-995.1,0.00022328,2]
[372497015,1752663094416,-460.0,0.00022328,2]
[372497016,1752663094427,-460.0,0.00022328,2]
[372497017,1752663094437,-474.83,0.00022328,2]
[372497018,1752663094448,-465.39,0.00022328,2]
[372497019,1752663094458,-460.0,0.00022328,2]
[372497020,1752663094469,-460.0,0.00022328,2]
[372497021,1752663094479,-597.28,0.00022328,2]
[372497022,1752663094491,-1174.38,0.00022328,2]
[372497023,1752663094501,-579.42,0.00022328,2]
[372497024,1752663094511,-469.93,0.00022328,2]
[372497025,1752663094522,-460.0,0.00022328,2]
[372497026,1752663094532,-1146.77,0.00022328,2]
[372497027,1752663094542,-2023.63,0.00022328,2]
[372497028,1752663094552,-460.0,0.00022328,2]
[372497029,1752663094561,-627.96,0.00022328,2]
[372497030,1752663094571,-2253.55,0.00022328,2]
[372497031,1752663094581,-597.05,0.00022328,2]
[372497032,1752663094591,-950.28,0.00022328,2]
[372497033,1752663094601,-692.22,0.00022328,2]
[372497034,1752663094610,-597.04,0.00022328,2]
[372497035,1752663094620,-460.0,0.00022328,2]
[372497036,1752663094630,-460.0,0.00022328,2]
[372497037,1752663094640,-460.0,0.00022328,2]
[372497038,1752663094650,-934.91,0.00022328,2]
[372497039,1752663094659,-2518.02,0.00022328,2]
[372497040,1752663094668,-1367.21,0.00022328,2]
[372497041,1752663094678,-1051.45,0.00022328,2]
[372497042,1752663094688,-460.0,0.00022328,2]
[372497043,1752663094698,-1954.32,0.00022328,2]
[372497044,1752663094708,-1320.19,0.00022328,2]
[372497045,1752663094717,-460.0,0.00022328,2]
[372497046,1752663094727,-460.0,0.00022328,2]
[372497047,1752663094736,-460.0,0.00022328,2]
[372497048,1752663094746,-460.0,0.00022328,2]
[372497049,1752663094757,-3449.55,0.00022328,2]
[372497050,1752663094767,-527.48,0.00022328,2]
[372497051,1752663094777,-460.0,0.00022328,2]
[372497052,1752663094786,-850.19,0.00022328,2]
[372497053,1752663094796,-460.0,0.00022328,2]
[372497054,1752663094806,-689.36,0.00022328,2]
[372497055,1752663094816,-460.0,0.00022328,2]
[372497056,1752663094826,-3110.28,0.00022328,2]
[372497057,1752663094836,-802.2,0.00022328,2]
[372497058,1752663094846,-460.0,0.00022328,2]
[372497059,1752663094856,-2098.67,0.00022328,2]
[372497060,1752663094867,-940.26,0.00022328,2]
[372497061,1752663094877,-2979.04,0.00022328,2]
[372497062,1752663094886,-460.0,0.00022328,2]
[372497063,1752663094896,-752.81,0.00022328,2]
[372497064,1752663094906,-945.82,0.00022328,2]
[372497065,1752663094916,-460.0,0.00022328,2]
[372497066,1752663094926,-461.28,0.00022328,2]
[372497067,1752663094936,-1080.52,0.00022328,2]
[372497068,1752663094947,-1127.17,0.00022328,2]
[372497069,1752663094957,-460.0,0.00022328,2]
[372497070,1752663094967,-486.62,0.00022328,2]
[372497071,1752663094977,-460.0,0.00022328,2]
[372497072,1752663094987,-460.0,0.00022328,2]
[372497073,1752663094997,-3049.9,0.00022328,2]
[372497074,1752663095007,-1363.97,0.00022328,2]
[372497075,1752663095017,-1920.84,0.00022328,2]
[372497076,1752663095027,-1266.56,0.00022328,2]
[372497077,1752663095167,-547.91,0.00022328,2]
[372497078,1752663095180,-460.0,0.00022328,2]
[372497079,1752663095192,-460.0,0.00022328,2]
[372497080,1752663095203,-460.0,0.00022328,2]
[372497081,1752663095213,-460.0,0.00022328,2]
[372497082,1752663095223,-963.24,0.00022328,2]
[372497083,1752663095233,-1157.14,0.00022328,2]
[372497084,1752663095243,-2280.97,0.00022328,2]
[372497085,1752663095253,-460.0,0.00022328,2]
[372497086,1752663095265,-2306.11,0.00022328,2]
[372497087,1752663095276,-1152.83,0.00022328,2]
[372497088,1752663095287,-1495.62,0.00022328,2]
[372497089,1752663095297,-526.48,0.00022328,2]
[372497090,1752663095307,-460.0,0.00022328,2]
[372497091,1752663095316,-460.0,0.00022328,2]
[372497092,1752663095327,-658.25,0.00022328,2]
[372497093,1752663095338,-460.0,0.00022328,2]
[372497094,1752663095348,-2249.33,0.00022328,2]
[372497095,1752663095359,-902.72,0.00022328,2]
[372497096,1752663095369,-498.87,0.00022328,2]
[372497097,1752663095379,-1741.37,0.00022328,2]
[372497098,1752663095388,-460.0,0.00022328,2]
[372497099,1752663095399,-460.0,0.00022328,2]
[372497100,1752663095410,-460.0,0.00022328,2]
[372497101,1752663095419,-515.22,0.00022328,2]
[372497102,1752663095429,-460.0,0.00022328,2]
[372497103,1752663095439,-1256.01,0.00022328,2]
[372497104,1752663095449,-748.36,0.00022328,2]
[372497105,1752663095459,-730.45,0.00022328,2]
[372497106,1752663095468,-889.78,0.00022328,2]
[372497107,1752663095478,-1213.76,0.00022328,2]
[372497108,1752663095488,-460.0,0.00022328,2]
[372497109,1752663095499,-595.0,0.00022328,2]
[372497110,1752663095510,-976.13,0.00022328,2]
[372497111,1752663095520,-270.17569819,0.00022328,2]
[372497112,1752663095532,-1393.74,0.00022328,2]
[372497113,1752663095542,-152.46374371,0.00022328,2]
[372497114,1752663095552,-1803.46,0.00022328,2]
[372497115,1752663095562,-460.0,0.00022328,2]
[372497116,1752663095573,-460.0,0.00022328,2]
[372497117,1752663095584,-460.0,0.00022328,2]
[372497118,1752663095594,-2622.24,0.00022328,2]
[372497119,1752663095603,-460.0,0.00022328,2]
[372497120,1752663095613,-476.01,0.00022328,2]
[372497121,1752663095622,-2059.43,0.00022328,2]
[372497122,1752663095631,-567.34,0.00022328,2]
[372497123,1752663095642,-2566.84,0.00022328,2]
[372497124,1752663095654,-2711.83,0.00022328,2]
[372497125,1752663095665,-460.0,0.00022328,2]
[372497126,1752663095676,-629.46,0.00022328,2]
[372497127,1752663095686,-460.0,0.00022328,2]
[372497128,1752663095697,-1222.0,0.00022328,2]
[372497129,1752663095707,-460.0,0.00022328,2]
[372497130,1752663095718,-460.0,0.00022328,2]
[372497131,1752663095728,-1237.1,0.00022328,2]
[372497132,1752663095745,-2588.11,0.00022328,2]
[372497133,1752663095766,-460.0,0.00022328,2]
[372497134,1752663095778,-499.91,0.00022328,2]
[372497135,1752663095790,-1423.44,0.00022328,2]
[372497136,1752663095803,-2529.28,0.00022328,2]
[372497137,1752663095813,-460.0,0.00022328,2]
[372497138,1752663095823,-460.0,0.00022328,2]
[372497139,1752663095832,-1539.06,0.00022328,2]
[372497140,1752663095842,-460.0,0.00022328,2]
[372497141,1752663095852,-1099.63,0.00022328,2]
[372497142,1752663095862,-1405.9,0.00022328,2]
[372497143,1752663095872,-460.0,0.00022328,2]
[372497144,1752663095882,-851.53,0.00022328,2]
[372497145,1752663095892,-3553.18,0.00022328,2]
[372497146,1752663095902,-460.0,0.00022328,2]
[372497147,1752663095911,-782.81,0.00022328,2]
[372497148,1752663095922,-540.25,0.00022328,2]
[372497149,1752663095932,-1813.38,0.00022328,2]
[372497150,1752663095942,-460.0,0.00022328,2]
[372497151,1752663095951,-3147.54,0.00022328,2]
[372497152,1752663095961,-1440.52,0.00022328,2]
[372497153,1752663095971,-460.0,0.00022328,2]
[372497154,1752663095981,-859.58,0.00022328,2]
[372497155,1752663095991,-1141.87,0.00022328,2]
[372497156,1752663096000,-462.80696233,0.00022328,2]
[372497157,1752663096010,-460.0,0.00022328,2]
[372497158,1752663096021,-1810.64,0.00022328,2]
[372497159,1752663096031,-3032.38,0.00022328,2]
[372497160,1752663096040,-460.0,0.00022328,2]
[372497161,1752663096051,-460.0,0.00022328,2]
[372497162,1752663096061,-460.0,0.00022328,2]
[372497163,1752663096071,-460.0,0.00022328,2]
[372497164,1752663096081,-460.0,0.00022328,2]
[372497165,1752663096091,-460.0,0.00022328,2]
[372497166,1752663096101,-525.43,0.00022328,2]
[372497167,1752663096110,-853.73,0.00022328,2]
[372497168,1752663096120,-496.87,0.00022328,2]
[372497169,1752663096130,-1417.02,0.00022328,2]
[372497170,1752663096140,-460.0,0.00022328,2]
[372497171,1752663096150,-2023.67,0.00022328,2]
[372497172,1752663096160,-2884.5,0.00022328,2]
[372497173,1752663096169,-460.0,0.00022328,2]
[372497174,1752663096180,-460.0,0.00022328,2]
[372497175,1752663096191,-460.0,0.00022328,2]
[372497176,1752663096201,-460.0,0.00022328,2]
[372497177,1752663096211,-3089.316035,0.00022328,2]
[372497178,1752663096221,-645.68,0.00022328,2]
[372497179,1752663096230,-460.0,0.00022328,2]
[372497180,1752663096240,-460.0,0.00022328,2]
[372497181,1752663096250,-3447.716716,0.00022328,2]
[372497182,1752663096264,-2243.27,0.00022328,2]
[372497183,1752663096275,-460.0,0.00022328,2]
[372497184,1752663096285,-1160.26,0.00022328,2]
[372497185,1752663096295,-1094.15,0.00022328,2]
[372497186,1752663096305,-3424.477153,0.00022328,2]
[372497187,1752663096315,-1128.01,0.00022328,2]
[372497188,1752663096324,-730.18,0.00022328,2]
[372497189,1752663096334,-465.62,0.00022328,2]
[372497190,1752663096344,-1203.47,0.00022328,2]
[372497191,1752663096353,-642.34,0.00022328,2]
[372497192,1752663096363,-1198.89,0.00022328,2]
[372497193,1752663096380,-1314.79,0.00022328,2]
[372497194,1752663096391,-887.6,0.00022328,2]
[372497195,1752663096401,-460.0,0.00022328,2]
[372497196,1752663096411,-460.0,0.00022328,2]
[372497197,1752663096420,-1011.16,0.00022328,2]
[372497198,1752663096430,-1132.15,0.00022328,2]
[372497199,1752663096439,-1858.32,0.00022328,2]
[372497200,1752663096450,-460.0,0.00022328,2]
[372497201,1752663096459,-903.29,0.00022328,2]
[372497202,1752663096469,-460.0,0.00022328,2]
[372497203,1752663096479,-994.92,0.00022328,2]
[372497204,1752663096488,-2880.76,0.00022328,2]
[372497205,1752663096498,-1024.12,0.00022328,2]
[372497206,1752663096507,-684.79,0.00022328,2]
[372497207,1752663096517,-460.0,0.00022328,2]
[372497208,1752663096527,-1863.81,0.00022328,2]
[372497209,1752663096537,-460.0,0.00022328,2]
[372497210,1752663096546,-3055.14,0.00022328,2]
[372497211,1752663096556,-460.0,0.00022328,2]
[372497212,1752663096565,-460.0,0.00022328,2]
[372497213,1752663096575,-570.24,0.00022328,2]
[372497214,1752663096585,-612.03,0.00022328,2]
[372497215,1752663096595,-460.0,0.00022328,2]
[372497216,1752663096605,-460.0,0.00022328,2]
[372497217,1752663096614,-3225.29,0.00022328,2]
[372497218,1752663096624,-460.0,0.00022328,2]
[372497219,1752663096635,-708.79,0.00022328,2]
[372497220,1752663096645,-799.53,0.00022328,2]
[372497221,1752663096655,-1452.54,0.00022328,2]
[372497222,1752663096664,-2151.45,0.00022328,2]
[372497223,1752663096674,-967.0,0.00022328,2]
[372497224,1752663096685,-460.0,0.00022328,2]
[372497225,1752663096694,-460.0,0.00022328,2]
[372497226,1752663096704,-909.92,0.00022328,2]
[372497227,1752663096714,-460.0,0.00022328,2]
[372497228,1752663096723,-460.0,0.00022328,2]
[372497229,1752663096733,-574.66,0.00022328,2]
[372497230,1752663096743,-460.0,0.00022328,2]
[372497231,1752663096752,-18257.49,0.00022328,2]
[372497232,1752663096761,-460.0,0.00022328,2]
[372497233,1752663096771,-1366.55,0.00022328,2]
[372497234,1752663096781,-4396.18,0.00022328,2]